fUSD/lending_fUSD_20250702
["ID","MTS","AMOUNT","RATE_DAILY","PERIOD"]
[369079375,1751459457481,-460.0,0.0003315,12]
[369079376,1751459457491,-460.0,0.0003315,12]
[369079377,1751459457500,-460.0,0.0003315,12]
[369079378,1751459457509,-460.0,0.0003315,12]
[369079379,1751459457518,-460.0,0.0003315,12]
[369079380,1751459457689,-460.0,0.0003315,12]
[369079381,1751459457699,-460.0,0.0003315,12]
[369079382,1751459457710,-460.0,0.0003315,12]
[369079383,1751459457721,-460.0,0.0003315,12]
[369079384,1751459457730,-460.0,0.0003315,12]
[369079385,1751459457740,-460.0,0.0003315,12]
[369079386,1751459457750,-484.02,0.0003315,12]
[369079387,1751459457760,-460.0,0.0003315,12]
[369079388,1751459457770,-590.38,0.0003315,12]
[369079389,1751459457779,-460.0,0.0003315,12]
[369079390,1751459457789,-460.0,0.0003315,12]
[369079391,1751459457798,-460.0,0.0003315,12]
[369079392,1751459457808,-460.0,0.0003315,12]
[369079393,1751459457817,-460.0,0.0003315,12]
[369079394,1751459457827,-460.0,0.0003315,12]
[369079395,1751459457836,-904.75,0.0003315,12]
[369079396,1751459457845,-460.0,0.0003315,12]
[369079397,1751459457855,-573.44,0.0003315,12]
[369079398,1751459457865,-460.0,0.0003315,12]
[369079399,1751459457874,-460.0,0.0003315,12]
[369079400,1751459457883,-460.0,0.0003315,12]
[369079401,1751459457892,-460.0,0.0003315,12]
[369079402,1751459457902,-520.0,0.0003315,12]
[369079403,1751459457911,-520.0,0.0003315,12]
[369079404,1751459457921,-460.0,0.0003315,12]
[369079405,1751459457930,-460.0,0.0003315,12]
[369079406,1751459457940,-520.0,0.0003315,12]
[369079407,1751459457949,-460.0,0.0003315,12]
[369079408,1751459457959,-460.0,0.0003315,12]
[369079409,1751459457969,-460.0,0.0003315,12]
[369079410,1751459457978,-176.14198772,0.0003315,12]
[369079411,1751459457988,-460.0,0.0003315,12]
[369079412,1751459457998,-1183.53,0.0003315,12]
[369079413,1751459458007,-460.0,0.0003315,12]
[369079414,1751459458017,-460.0,0.0003315,12]
[369079415,1751459458026,-460.0,0.0003315,12]
[369079416,1751459458035,-460.0,0.0003315,12]
[369079417,1751459458044,-460.0,0.0003315,12]
[369079418,1751459458054,-565.29,0.0003315,12]
[369079419,1751459458063,-460.0,0.0003315,12]
[369079420,1751459458073,-1566.64,0.0003315,12]
[369079421,1751459458083,-460.0,0.0003315,12]
[369079422,1751459458092,-1081.52,0.0003315,12]
[369079423,1751459458101,-540.76,0.0003315,12]
[369079424,1751459458112,-460.0,0.0003315,12]
[369079425,1751459458121,-520.0,0.0003315,12]
[369079426,1751459458131,-523.76889134,0.0003315,12]
[369079427,1751459458140,-460.0,0.0003315,12]
[369079428,1751459458150,-523.01847785,0.0003315,12]
[369079429,1751459458160,-862.33,0.0003315,12]
[369079430,1751459458169,-607.71,0.0003315,12]
[369079431,1751459458178,-460.0,0.0003315,2]
[369079432,1751459458187,-460.0,0.0003315,12]
[369079433,1751459458196,-460.0,0.0003315,12]
[369079434,1751459458205,-1993.35,0.0003315,12]
[369079435,1751459458214,-460.0,0.0003315,12]
[369079436,1751459458224,-460.0,0.0003315,12]
[369079437,1751459458233,-409.51148827,0.0003315,12]
[369079438,1751459458242,-762.98,0.0003315,12]
[369079439,1751459458251,-460.0,0.0003315,12]
[369079440,1751459458260,-460.0,0.0003315,12]
[369079441,1751459458270,-460.0,0.0003315,12]
[369079442,1751459458280,-792.25,0.0003315,12]
[369079443,1751459458290,-522.91716065,0.0003315,12]
[369079444,1751459458300,-460.0,0.0003315,12]
[369079445,1751459458310,-460.0,0.0003315,12]
[369079446,1751459458320,-460.0,0.0003315,12]
[369079447,1751459458330,-773.03,0.0003315,12]
[369079448,1751459458339,-902.37,0.0003315,12]
[369079449,1751459458348,-460.0,0.0003315,12]
[369079450,1751459458357,-760.24,0.0003315,12]
[369079451,1751459458369,-460.0,0.0003315,12]
[369079452,1751459458378,-460.0,0.0003315,12]
[369079453,1751459458387,-520.0,0.0003315,12]
[369079454,1751459458398,-460.0,0.0003315,12]
[369079455,1751459458408,-460.0,0.0003315,12]
[369079456,1751459458417,-527.70526941,0.0003315,12]
[369079457,1751459458427,-460.0,0.0003315,12]
[369079458,1751459458438,-829.86,0.0003315,12]
[369079459,1751459458447,-460.0,0.0003315,12]
[369079460,1751459458456,-1039.64,0.0003315,12]
[369079461,1751459458466,-666.47,0.0003315,12]
[369079462,1751459458476,-330.0390366,0.0003315,12]
[369079463,1751459458485,-460.0,0.0003315,12]
[369079464,1751459458495,-460.0,0.0003315,12]
[369079465,1751459458505,-460.0,0.0003315,12]
[369079466,1751459458514,-460.0,0.0003315,12]
[369079467,1751459458524,-521.9179734,0.0003315,12]
[369079468,1751459458534,-460.0,0.0003315,12]
[369079469,1751459458543,-520.0,0.0003315,12]
[369079470,1751459458553,-460.0,0.0003315,12]
[369079471,1751459458565,-460.0,0.0003315,12]
[369079472,1751459458574,-460.0,0.0003315,12]
[369079473,1751459458583,-460.0,0.0003315,12]
[369079474,1751459458592,-460.0,0.0003315,12]
[369079475,1751459458603,-460.0,0.0003315,12]
[369079476,1751459458613,-520.0,0.0003315,12]
[369079477,1751459458624,-525.19,0.0003315,12]
[369079478,1751459458636,-2132.81,0.0003315,12]
[369079479,1751459458646,-460.0,0.0003315,12]
[369079480,1751459458656,-460.0,0.0003315,12]
[369079481,1751459458665,-460.0,0.0003315,12]
[369079482,1751459458675,-349.50070444,0.0003315,12]
[369079483,1751459458684,-460.0,0.0003315,12]
[369079484,1751459458694,-460.0,0.0003315,12]
[369079485,1751459458703,-460.0,0.0003315,12]
[369079486,1751459458713,-460.0,0.0003315,12]
[369079487,1751459458723,-1000.19,0.0003315,12]
[369079488,1751459458736,-460.0,0.0003315,12]
[369079489,1751459458746,-460.0,0.0003315,12]
[369079490,1751459458755,-505.42872918,0.0003315,12]
[369079491,1751459458765,-460.0,0.0003315,12]
[369079492,1751459458775,-520.0,0.0003315,12]
[369079493,1751459458784,-460.0,0.0003315,12]
[369079494,1751459458794,-578.63,0.0003315,12]
[369079495,1751459458804,-460.0,0.0003315,12]
[369079496,1751459458814,-520.0,0.0003315,12]
[369079497,1751459458824,-460.0,0.0003315,12]
[369079498,1751459458834,-825.49,0.0003315,12]
[369079499,1751459458843,-1130.72,0.0003315,12]
[369079500,1751459458853,-521.85140557,0.0003315,12]
[369079501,1751459458863,-460.0,0.0003315,12]
[369079502,1751459458873,-460.0,0.0003315,12]
[369079503,1751459458882,-460.0,0.0003315,12]
[369079504,1751459458891,-762.31,0.0003315,12]
[369079505,1751459458900,-460.0,0.0003315,12]
[369079506,1751459458910,-460.0,0.0003315,12]
[369079507,1751459458919,-581.03,0.0003315,12]
[369079508,1751459458928,-520.0,0.0003315,12]
[369079509,1751459458937,-1127.59,0.0003315,12]
[369079510,1751459458946,-460.0,0.0003315,12]
[369079511,1751459458956,-460.0,0.0003315,12]
[369079512,1751459458965,-500.9,0.0003315,12]
[369079513,1751459458975,-460.0,0.0003315,12]
[369079514,1751459458984,-520.0,0.0003315,12]
[369079515,1751459458994,-460.0,0.0003315,12]
[369079516,1751459459004,-460.0,0.0003315,12]
[369079517,1751459459014,-460.0,0.0003315,12]
[369079518,1751459459024,-460.0,0.0003315,12]
[369079519,1751459459034,-579.69545892,0.0003315,12]
[369079520,1751459459044,-522.29,0.0003315,12]
[369079521,1751459459053,-1296.71,0.0003315,12]
[369079522,1751459459062,-460.0,0.0003315,12]
[369079523,1751459459071,-520.0,0.0003315,12]
[369079524,1751459459080,-654.56,0.0003315,12]
[369079525,1751459459089,-460.0,0.0003315,12]
[369079526,1751459459098,-460.0,0.0003315,12]
[369079527,1751459459108,-460.0,0.0003315,12]
[369079528,1751459459117,-460.0,0.0003315,12]
[369079529,1751459459126,-520.0,0.0003315,12]
[369079530,1751459459135,-445.27465207,0.0003315,12]
[369079531,1751459459143,-966.24,0.0003315,12]
[369079532,1751459459153,-1606.45,0.0003315,12]
[369079533,1751459459162,-520.0,0.0003315,12]
[369079534,1751459459171,-460.0,0.0003315,12]
[369079535,1751459459180,-754.44,0.0003315,12]
[369079536,1751459459190,-460.0,0.0003315,12]
[369079537,1751459459199,-490.95,0.0003315,12]
[369079538,1751459459208,-347.60085391,0.0003315,12]
[369079539,1751459459218,-1397.36,0.0003315,12]
[369079540,1751459459227,-460.0,0.0003315,12]
[369079541,1751459459236,-460.0,0.0003315,12]
[369079542,1751459459246,-1649.52,0.0003315,12]
[369079543,1751459459255,-334.48378776,0.0003315,12]
[369079544,1751459459264,-460.0,0.0003315,12]
[369079545,1751459459273,-985.75,0.0003315,12]
[369079546,1751459459283,-634.18,0.0003315,12]
[369079547,1751459459292,-558.81,0.0003315,12]
[369079548,1751459459301,-527.55442196,0.0003315,12]
[369079549,1751459459311,-460.0,0.0003315,12]
[369079550,1751459459320,-1149.7,0.0003315,12]
[369079551,1751459459330,-460.0,0.0003315,12]
[369079552,1751459459339,-520.0,0.0003315,12]
[369079553,1751459459348,-460.0,0.0003315,12]
[369079554,1751459459358,-1674.08,0.0003315,12]
[369079555,1751459459368,-460.0,0.0003315,12]
[369079556,1751459459378,-460.0,0.0003315,12]
[369079557,1751459459387,-460.0,0.0003315,12]
[369079558,1751459459397,-530.1736012,0.0003315,12]
[369079559,1751459459406,-521.67916601,0.0003315,12]
[369079560,1751459459415,-1239.39,0.0003315,12]
[369079561,1751459459425,-460.0,0.0003315,12]
[369079562,1751459459434,-627.88,0.0003315,12]
[369079563,1751459459444,-953.5,0.0003315,12]
[369079564,1751459459454,-460.0,0.0003315,12]
[369079565,1751459459463,-460.0,0.0003315,12]
[369079566,1751459459473,-460.0,0.0003315,12]
[369079567,1751459459483,-520.0,0.0003315,12]
[369079568,1751459459493,-460.0,0.0003315,12]
[369079569,1751459459502,-460.0,0.0003315,12]
[369079570,1751459459512,-964.37,0.0003315,12]
[369079571,1751459459521,-460.0,0.0003315,12]
[369079572,1751459459531,-594.38,0.0003315,12]
[369079573,1751459459540,-438.62397857,0.0003315,12]
[369079574,1751459459551,-460.0,0.0003315,12]
[369079575,1751459459563,-662.15,0.0003315,12]
[369079576,1751459459572,-460.0,0.0003315,12]
[369079577,1751459459582,-552.89,0.0003315,12]
[369079578,1751459459592,-1071.77,0.0003315,12]
[369079579,1751459459602,-460.0,0.0003315,12]
[369079580,1751459459612,-460.0,0.0003315,12]
[369079581,1751459459621,-820.11,0.0003315,12]
[369079582,1751459459631,-460.0,0.0003315,12]
[369079583,1751459459641,-460.0,0.0003315,120]
[369079584,1751459459651,-460.0,0.0003315,12]
[369079585,1751459459660,-460.0,0.0003315,12]
[369079586,1751459459669,-259.00301977,0.0003315,12]
[369079587,1751459459679,-570.37,0.0003315,12]
[369079588,1751459459691,-460.0,0.0003315,12]
[369079589,1751459459700,-460.0,0.0003315,12]
[369079590,1751459459710,-460.0,0.0003315,12]
[369079591,1751459459719,-460.0,0.0003315,12]
[369079592,1751459459728,-460.0,0.0003315,12]
[369079593,1751459459737,-520.0,0.0003315,12]
[369079594,1751459459747,-1069.03,0.0003315,12]
[369079595,1751459459756,-608.54,0.0003315,12]
[369079596,1751459459765,-1686.95,0.0003315,12]
[369079597,1751459459774,-460.0,0.0003315,12]
[369079598,1751459459784,-460.0,0.0003315,12]
[369079599,1751459459794,-460.0,0.0003315,12]
[369079600,1751459459953,-216.42222535,0.0003315,12]
[369079601,1751459459963,-520.0,0.0003315,12]
[369079602,1751459459973,-460.0,0.0003315,12]
[369079603,1751459459982,-460.0,0.0003315,12]
[369079604,1751459459992,-520.0,0.0003315,12]
[369079605,1751459460001,-520.0,0.0003315,12]
[369079606,1751459460011,-449.48441909,0.0003315,12]
[369079607,1751459460020,-460.0,0.0003315,12]
[369079608,1751459460030,-460.0,0.0003315,12]
[369079609,1751459460039,-460.0,0.0003315,12]
[369079610,1751459460049,-1159.67,0.0003315,12]
[369079611,1751459460059,-460.0,0.0003315,12]
[369079612,1751459460068,-520.0,0.0003315,12]
[369079613,1751459460078,-1731.47,0.0003315,12]
[369079614,1751459460087,-460.0,0.0003315,12]
[369079615,1751459460097,-508.94,0.0003315,12]
[369079616,1751459460106,-460.0,0.0003315,12]
[369079617,1751459460117,-523.53564366,0.0003315,12]
[369079618,1751459460127,-759.97,0.0003315,12]
[369079619,1751459460136,-1214.29,0.0003315,12]
[369079620,1751459460146,-520.0,0.0003315,12]
[369079621,1751459460155,-460.0,0.0003315,12]
[369079622,1751459460164,-1405.32,0.0003315,12]
[369079623,1751459460174,-934.59,0.0003315,12]
[369079624,1751459460184,-460.0,0.0003315,12]
[369079625,1751459460194,-1382.67,0.0003315,12]
[369079626,1751459460204,-460.0,0.0003315,12]
[369079627,1751459460214,-460.0,0.0003315,12]
[369079628,1751459460224,-520.0,0.0003315,12]
[369079629,1751459460234,-460.0,0.0003315,12]
[369079630,1751459460244,-1451.8,0.0003315,12]
[369079631,1751459460254,-611.29,0.0003315,12]
[369079632,1751459460264,-460.0,0.0003315,12]
[369079633,1751459460274,-15927.65,0.0003315,12]
[369079634,1751459460284,-460.0,0.0003315,12]
[369079635,1751459460293,-520.0,0.0003315,12]
[369079636,1751459460303,-463.64,0.0003315,12]
[369079637,1751459460312,-527.48,0.0003315,12]
[369079638,1751459460322,-460.0,0.0003315,12]
[369079639,1751459460332,-460.0,0.0003315,12]
[369079640,1751459460341,-460.0,0.0003315,12]
[369079641,1751459460351,-1289.18,0.0003315,12]
[369079642,1751459460360,-460.0,0.0003315,12]
[369079643,1751459460370,-460.0,0.0003315,12]
[369079644,1751459460379,-460.0,0.0003315,12]
[369079645,1751459460388,-460.0,0.0003315,12]
[369079646,1751459460398,-460.0,0.0003315,12]
[369079647,1751459460408,-467.94,0.0003315,12]
[369079648,1751459460418,-1077.32,0.0003315,12]
[369079649,1751459460428,-1409.87,0.0003315,12]
[369079650,1751459460437,-1091.52,0.0003315,12]
[369079651,1751459460447,-460.0,0.0003315,12]
[369079652,1751459460456,-460.0,0.0003315,12]
[369079653,1751459460465,-200.0,0.0003315,12]
[369079654,1751459460475,-520.0,0.0003315,12]
[369079655,1751459460485,-460.0,0.0003315,12]
[369079656,1751459460495,-2082.02,0.0003315,12]
[369079657,1751459460505,-460.0,0.0003315,12]
[369079658,1751459460515,-520.0,0.0003315,12]
[369079659,1751459460525,-2831.77,0.0003315,12]
[369079660,1751459460535,-1237.45,0.0003315,12]
[369079661,1751459460545,-1376.62,0.0003315,12]
[369079662,1751459460559,-517.61394156,0.0003315,12]
[369079663,1751459460569,-460.0,0.0003315,12]
[369079664,1751459460579,-575.01,0.0003315,12]
[369079665,1751459460589,-1565.03,0.0003315,12]
[369079666,1751459460599,-1414.39,0.0003315,12]
[369079667,1751459460610,-460.0,0.0003315,12]
[369079668,1751459460621,-460.0,0.0003315,12]
[369079669,1751459460632,-2281.58,0.0003315,12]
[369079670,1751459460641,-460.0,0.0003315,12]
[369079671,1751459460650,-460.0,0.0003315,12]
[369079672,1751459460660,-1729.89,0.0003315,12]
[369079673,1751459460669,-1175.78,0.0003315,12]
[369079674,1751459460679,-520.0,0.0003315,12]
[369079675,1751459460688,-460.0,0.0003315,12]
[369079676,1751459460698,-460.0,0.0003315,12]
[369079677,1751459460707,-460.0,0.0003315,12]
[369079678,1751459460717,-460.0,0.0003315,12]
[369079679,1751459460726,-460.0,0.0003315,12]
[369079680,1751459460736,-520.0,0.0003315,12]
[369079681,1751459460745,-460.0,0.0003315,12]
[369079682,1751459460755,-1149.1,0.0003315,12]
[369079683,1751459460764,-460.0,0.0003315,12]
[369079684,1751459460774,-460.0,0.0003315,12]
[369079685,1751459460783,-3665.44,0.0003315,12]
[369079686,1751459460793,-520.0,0.0003315,12]
[369079687,1751459460802,-460.0,0.0003315,12]
[369079688,1751459460812,-1468.62,0.0003315,12]
[369079689,1751459460821,-460.0,0.0003315,12]
[369079690,1751459460831,-460.55,0.0003315,12]
[369079691,1751459460840,-460.0,0.0003315,12]
[369079692,1751459460850,-460.0,0.0003315,12]
[369079693,1751459460859,-2230.31,0.0003315,12]
[369079694,1751459460869,-460.0,0.0003315,12]
[369079695,1751459460878,-460.0,0.0003315,12]
[369079696,1751459460887,-658.5,0.0003315,12]
[369079697,1751459460896,-460.0,0.0003315,12]
[369079698,1751459460906,-546.20958926,0.0003315,12]
[369079699,1751459460915,-1002.35,0.0003315,12]
[369079700,1751459460925,-696.22,0.0003315,12]
[369079701,1751459460948,-460.0,0.0003315,12]
[369079702,1751459460964,-460.0,0.0003315,12]
[369079703,1751459460984,-460.0,0.0003315,12]
[369079704,1751459461003,-460.0,0.0003315,12]
[369079705,1751459461018,-558.5,0.0003315,12]
[369079706,1751459461037,-478.41,0.0003315,12]
[369079707,1751459461057,-641.74,0.0003315,12]
[369079708,1751459461076,-520.0,0.0003315,12]
[369079709,1751459461095,-520.0,0.0003315,12]
[369079710,1751459461112,-2332.84,0.0003315,12]
[369079711,1751459461132,-1924.05,0.0003315,12]
[369079712,1751459461149,-811.99,0.0003315,12]
[369079713,1751459461161,-460.0,0.0003315,12]
[369079714,1751459461180,-460.0,0.0003315,12]
[369079715,1751459461193,-2927.22,0.0003315,12]
[369079716,1751459461211,-509.59,0.0003315,12]
[369079717,1751459461223,-1502.0,0.0003315,12]
[369079718,1751459461240,-460.0,0.0003315,12]
[369079719,1751459461256,-460.0,0.0003315,12]
[369079720,1751459461270,-986.46,0.0003315,12]
[369079721,1751459461285,-1797.17,0.0003315,12]
[369079722,1751459461300,-4132.11,0.0003315,12]
[369079723,1751459461315,-460.0,0.0003315,12]
[369079724,1751459461329,-651.92,0.0003315,12]
[369079725,1751459461345,-666.06,0.0003315,12]
[369079726,1751459461359,-460.0,0.0003315,12]
[369079727,1751459461375,-1947.37,0.0003315,12]
[369079728,1751459461389,-520.0,0.0003315,12]
[369079729,1751459461404,-460.0,0.0003315,12]
[369079730,1751459461420,-1636.62,0.0003315,12]
[369079731,1751459461435,-520.0,0.0003315,12]
[369079732,1751459461451,-460.0,0.0003315,12]
[369079733,1751459461466,-460.0,0.0003315,12]
[369079734,1751459461480,-511.49,0.0003315,12]
[369079735,1751459461495,-1363.38,0.0003315,12]
[369079736,1751459461510,-460.0,0.0003315,12]
[369079737,1751459461525,-1286.19,0.0003315,12]
[369079738,1751459461540,-460.0,0.0003315,12]
[369079739,1751459461557,-1449.82,0.0003315,12]
[369079740,1751459461572,-1403.7,0.0003315,12]
[369079741,1751459461587,-2589.73,0.0003315,12]
[369079742,1751459461601,-523.93692488,0.0003315,12]
[369079743,1751459461617,-460.0,0.0003315,12]
[369079744,1751459461632,-460.0,0.0003315,12]
[369079745,1751459461652,-460.0,0.0003315,12]
[369079746,1751459461667,-460.0,0.0003315,12]
[369079747,1751459461682,-460.0,0.0003315,12]
[369079748,1751459461696,-973.03,0.0003315,12]
[369079749,1751459461711,-460.0,0.0003315,12]
[369079750,1751459461727,-1309.23,0.0003315,12]
[369079751,1751459461742,-520.0,0.0003315,12]
[369079752,1751459461757,-460.0,0.0003315,12]
[369079753,1751459461772,-2613.27,0.0003315,12]
[369079754,1751459461787,-2685.38,0.0003315,12]
[369079755,1751459461800,-460.0,0.0003315,12]
[369079756,1751459461814,-688.28,0.0003315,12]
[369079757,1751459461829,-862.51,0.0003315,12]
[369079758,1751459461844,-522.55605072,0.0003315,12]
[369079759,1751459461861,-460.0,0.0003315,12]
[369079760,1751459461875,-460.0,0.0003315,12]
[369079761,1751459461891,-1131.85,0.0003315,12]
[369079762,1751459461906,-915.96,0.0003315,12]
[369079763,1751459461922,-520.0,0.0003315,12]
[369079764,1751459461938,-460.0,0.0003315,12]
[369079765,1751459461954,-460.0,0.0003315,12]
[369079766,1751459461968,-460.0,0.0003315,12]
[369079767,1751459461984,-3235.84,0.0003315,12]
[369079768,1751459461999,-641.3,0.0003315,12]
[369079769,1751459462013,-2890.66,0.0003315,12]
[369079770,1751459462029,-722.87,0.0003315,12]
[369079771,1751459462043,-497.6,0.0003315,12]
[369079772,1751459462058,-460.0,0.0003315,12]
[369079773,1751459462073,-460.0,0.0003315,12]
[369079774,1751459462088,-520.0,0.0003315,12]
[369079775,1751459462102,-460.0,0.0003315,12]
[369079776,1751459462117,-2204.26,0.0003315,12]
[369079777,1751459462132,-951.71,0.0003315,12]
[369079778,1751459462147,-1554.5,0.0003315,12]
[369079779,1751459462162,-5378.04,0.0003315,12]
[369079780,1751459462177,-3904.35,0.0003315,12]
[369079781,1751459462192,-460.0,0.0003315,12]
[369079782,1751459462207,-1436.23,0.0003315,12]
[369079783,1751459462223,-840.95,0.0003315,12]
[369079784,1751459462238,-520.0,0.0003315,12]
[369079785,1751459462254,-889.64,0.0003315,12]
[369079786,1751459462269,-1854.08,0.0003315,12]
[369079787,1751459462285,-520.0,0.0003315,12]
[369079788,1751459462300,-1480.19,0.0003315,12]
[369079789,1751459462315,-460.0,0.0003315,12]
[369079790,1751459462330,-537.28,0.0003315,12]
[369079791,1751459462346,-473.98,0.0003315,12]
[369079792,1751459462368,-460.0,0.0003315,12]
[369079793,1751459462383,-2139.68,0.0003315,12]
[369079794,1751459462398,-1884.13,0.0003315,12]
[369079795,1751459462413,-7988.88,0.0003315,12]
[369079796,1751459462429,-460.0,0.0003315,12]
[369079797,1751459462444,-520.0,0.0003315,12]
[369079798,1751459462458,-909.23,0.0003315,12]
[369079799,1751459462473,-460.0,0.0003315,12]
[369079800,1751459462488,-460.0,0.0003315,12]
[369079801,1751459462504,-1883.73,0.0003315,12]
[369079802,1751459462520,-1467.16,0.0003315,12]
[369079803,1751459462754,-1488.75,0.0003315,12]
[369079804,1751459462764,-2862.36,0.0003315,12]
[369079805,1751459462774,-8510.95,0.0003315,12]
[369079806,1751459462783,-460.0,0.0003315,12]
[369079807,1751459462793,-738.89,0.0003315,12]
[369079808,1751459462802,-1522.88,0.0003315,12]
[369079809,1751459462811,-1275.26,0.0003315,12]
[369079810,1751459462821,-1212.9,0.0003315,12]
[369079811,1751459462830,-2455.06,0.0003315,12]
[369079812,1751459462839,-2227.15,0.0003315,12]
[369079813,1751459462848,-2908.57,0.0003315,12]
[369079814,1751459462858,-1770.3,0.0003315,12]
[369079815,1751459462868,-520.0,0.0003315,12]
[369079816,1751459462878,-1372.63,0.0003315,12]
[369079817,1751459462887,-448.62223658,0.0003315,12]
[369079818,1751459462896,-460.0,0.0003315,12]
[369079819,1751459462905,-460.0,0.0003315,12]
[369079820,1751459462914,-460.0,0.0003315,12]
[369079821,1751459462924,-460.0,0.0003315,12]
[369079822,1751459462933,-247.22237453,0.0003315,12]
[369079823,1751459462942,-460.0,0.0003315,12]
[369079824,1751459462951,-460.0,0.0003315,12]
[369079825,1751459462961,-460.0,0.0003315,12]
[369079826,1751459462971,-460.0,0.0003315,12]
[369079827,1751459462980,-352.05022354,0.0003315,12]
[369079828,1751459462988,-522.36907238,0.0003315,12]
[369079829,1751459462998,-2181.7,0.0003315,12]
[369079830,1751459463007,-1500.0,0.0003315,60]
[369079831,1751459463016,-520.0,0.0003315,12]
[369079832,1751459463025,-593.14,0.0003315,12]
[369079833,1751459463035,-460.0,0.0003315,12]
[369079834,1751459463045,-460.0,0.0003315,12]
[369079835,1751459463055,-521.77836144,0.0003315,12]
[369079836,1751459463064,-460.0,0.0003315,12]
[369079837,1751459463074,-460.0,0.0003315,12]
[369079838,1751459463084,-748.35,0.0003315,12]
[369079839,1751459463093,-1809.21,0.0003315,12]
[369079840,1751459463102,-513.23,0.0003315,12]
[369079841,1751459463112,-1974.62,0.0003315,12]
[369079842,1751459463122,-2940.61,0.0003315,12]
[369079843,1751459463132,-460.0,0.0003315,12]
[369079844,1751459463142,-520.0,0.0003315,12]
[369079845,1751459463152,-14337.64,0.0003315,12]
[369079846,1751459463161,-520.0,0.0003315,12]
[369079847,1751459463179,-1464.54,0.0003315,12]
[369079848,1751459463189,-460.0,0.0003315,12]
[369079849,1751459463200,-1918.91,0.0003315,12]
[369079850,1751459463210,-1455.47,0.0003315,12]
[369079851,1751459463221,-1297.63,0.0003315,12]
[369079852,1751459463232,-522.3783235,0.0003315,12]
[369079853,1751459463242,-613.06,0.0003315,12]
[369079854,1751459463252,-460.0,0.0003315,12]
[369079855,1751459463261,-520.0,0.0003315,12]
[369079856,1751459463271,-460.0,0.0003315,12]
[369079857,1751459463282,-460.0,0.0003315,12]
[369079858,1751459463293,-460.0,0.0003315,12]
[369079859,1751459463303,-334.09,0.0003315,12]
[369079860,1751459463314,-1115.56,0.0003315,12]
[369079861,1751459463324,-1622.65,0.0003315,12]
[369079862,1751459463334,-1251.09,0.0003315,12]
[369079863,1751459463345,-918.87,0.0003315,12]
[369079864,1751459463354,-520.0,0.0003315,12]
[369079865,1751459463365,-610.79,0.0003315,12]
[369079866,1751459463374,-520.0,0.0003315,12]
[369079867,1751459463384,-1558.04,0.0003315,12]
[369079868,1751459463394,-460.0,0.0003315,12]
[369079869,1751459463403,-1532.03,0.0003315,12]
[369079870,1751459463412,-555.56451131,0.0003315,12]
[369079871,1751459463421,-927.78,0.0003315,12]
[369079872,1751459463431,-1120.2,0.0003315,12]
[369079873,1751459463441,-460.0,0.0003315,7]
[369079874,1751459463451,-5018.91,0.0003315,12]